bitfinex-derivatives/quotes_BNBF0:USTF0_20250316
["timestamp","ask_amount","ask_price","bid_price","bid_amount"]
[1742138507102,0.33297261,600.65,599.27,0.588]
[1742138507103,0.33297261,600.65,599.29,0.30626098]
[1742138507304,0.33297261,600.65,599.28,0.30626098]
[1742138507502,0.33297261,600.65,599.27,0.588]
[1742138507703,0.33297261,600.65,599.28,0.30626]
[1742138509008,0.33297261,600.65,599.29,0.33372824]
[1742138509200,0.33297261,600.65,599.3,0.30626]
[1742138509509,0.33297261,600.65,599.31,0.63993186]
[1742138509709,0.33297261,600.65,599.32,0.63992629]
[1742138510006,0.33297261,600.65,599.33,0.63992073]
[1742138510211,0.33297261,600.65,599.34,0.30621476]
[1742138511110,0.33297261,600.65,599.35,0.30620797]
[1742138511400,0.33297261,600.65,599.34,0.30620797]
[1742138511602,0.33297261,600.65,599.36,0.30620797]
[1742138511805,0.33297261,600.65,599.37,0.30620797]
[1742138512005,0.33297261,600.65,599.34,0.30620797]
[1742138512206,0.33297261,600.65,599.33,0.33370597]
[1742138512207,0.33297261,600.65,599.35,0.30620797]
[1742138512411,0.33297261,600.65,599.34,0.30620797]
[1742138513709,0.33297261,600.65,599.35,0.64]
[1742138513911,0.33297261,600.65,599.36,0.30620797]
[1742138514917,0.33297261,600.65,599.37,0.30621253]
[1742138515121,0.33297261,600.65,599.38,0.30621253]
[1742138515415,0.33297261,600.65,599.39,0.30621253]
[1742138515618,0.33297261,600.65,599.4,0.30621253]
[1742138515818,0.33297261,600.65,599.41,0.30621253]
[1742138516018,0.33297261,600.65,599.36,0.30621253]
[1742138516219,0.33297261,600.65,599.37,0.30621253]
[1742138516515,0.33297261,600.65,599.38,0.30621253]
[1742138516725,0.33297261,600.65,599.36,0.30621253]
[1742138516926,0.33297261,600.65,599.37,0.30621253]
[1742138517218,0.33297261,600.65,599.38,0.30621253]
[1742138517418,0.33297261,600.65,599.39,0.30621253]
[1742138517816,0.33297261,600.65,599.4,0.30621253]
[1742138518013,0.33297261,600.65,599.36,0.30621253]
[1742138518221,0.33297261,600.65,599.37,0.30621253]
[1742138518614,0.33297261,600.65,599.38,0.30621253]
[1742138518817,0.33297261,600.65,599.39,0.30621253]
[1742138519017,0.33297261,600.65,599.36,0.30621253]
[1742138519217,0.33297261,600.65,599.35,0.64]
[1742138519218,0.33297261,600.65,599.37,0.30621253]
[1742138519519,0.33297261,600.65,599.38,0.30621253]
[1742138519821,0.33297261,600.65,599.39,0.30621253]
[1742138520016,0.33297261,600.65,599.35,0.93007614]
[1742138520017,0.33297261,600.65,599.36,0.30621253]
[1742138520218,0.33297261,600.65,599.37,0.30621441]
[1742138520414,0.33297261,600.65,599.38,0.30621441]
[1742138520624,0.33297261,600.65,599.39,0.30621441]
[1742138520823,0.33297261,600.65,599.36,0.30621441]
[1742138521016,0.33297261,600.65,599.37,0.30621441]
[1742138521321,0.33297261,600.65,599.38,0.30621441]
[1742138521516,0.33297261,600.65,599.39,0.30621441]
[1742138521720,0.33297261,600.65,599.36,0.30621441]
[1742138521920,0.33297261,600.65,599.37,0.30621441]
[1742138522124,0.33297261,600.65,599.38,0.30621441]
[1742138522526,0.33297261,600.65,599.39,0.30621441]
[1742138522827,0.33297261,600.65,599.4,0.30621441]
[1742138523025,0.33297261,600.65,599.36,0.30621441]
[1742138523227,0.33297261,600.65,599.35,0.93007614]
[1742138523228,0.33297261,600.65,599.37,0.30621441]
[1742138523623,0.33297261,600.65,599.38,0.30621441]
[1742138523824,0.33297261,600.65,599.36,0.30621441]
[1742138524025,0.33297261,600.65,599.37,0.30621441]
[1742138524226,0.33297261,600.65,599.36,0.30621441]
[1742138524532,0.33297261,600.65,599.37,0.30621441]
[1742138524724,0.33297261,600.65,599.38,0.30621441]
[1742138524925,0.33297261,600.65,599.39,0.30621441]
[1742138525127,0.33297261,600.65,599.4,0.30621441]
[1742138525332,0.33297261,600.65,599.35,0.93007614]
[1742138525531,0.33297261,600.65,599.36,0.30623904]
[1742138526934,0.602,600.64,599.36,0.30623904]
[1742138527135,0.3329837,600.63,599.35,0.93007614]
[1742138527434,0.3329837,600.63,599.36,0.30623906]
[1742138528836,0.3329837,600.63,599.35,0.64]
[1742138529030,0.3329837,600.63,599.37,0.30623378]
[1742138529237,0.3329837,600.63,599.38,0.30623378]
[1742138529435,0.3329837,600.63,599.36,0.30623378]
[1742138529731,0.3329837,600.63,599.37,0.30623378]
[1742138530037,0.3329837,600.63,599.38,0.30623378]
[1742138530236,0.3329837,600.63,599.36,0.30623378]
[1742138530536,0.3329837,600.63,599.37,0.30623378]
[1742138530736,0.3329837,600.63,599.38,0.30623378]
[1742138530935,0.3329837,600.63,599.39,0.30623378]
[1742138531136,0.3329837,600.63,599.4,0.30623378]
[1742138531439,0.3329837,600.63,599.41,0.30623378]
[1742138531633,0.3329837,600.63,599.36,0.30623378]
[1742138531831,0.3329837,600.63,599.37,0.30623378]
[1742138532030,0.3329837,600.63,599.36,0.30623378]
[1742138532230,0.3329837,600.63,599.37,0.30623378]
[1742138532533,0.3329837,600.63,599.38,0.30623378]
[1742138532738,0.3329837,600.63,599.35,0.93009186]
[1742138532938,0.3329837,600.63,599.36,0.30621204]
[1742138534132,0.3329837,600.63,599.37,0.3336837]
[1742138534336,0.3329837,600.63,599.38,0.30621204]
[1742138534736,0.3329837,600.63,599.39,0.30621204]
[1742138534938,0.3329837,600.63,599.4,0.30621204]
[1742138535136,0.3329837,600.63,599.41,0.30621204]
[1742138535335,0.3329837,600.63,599.42,0.30621204]
[1742138535530,0.3329837,600.63,599.43,0.63986234]
[1742138535732,0.3329837,600.63,599.44,0.63985677]
[1742138536039,0.3329837,600.63,599.45,0.6398512]
[1742138536237,0.3329837,600.63,599.46,0.3336336]
[1742138536439,0.3329837,600.63,599.47,0.30621204]
[1742138536632,0.3329837,600.63,599.48,0.30621204]
[1742138536837,0.3329837,600.63,599.49,0.63982894]
[1742138537035,0.3329837,600.63,599.5,0.63982338]
[1742138537235,0.3329837,600.63,599.51,0.30621204]
[1742138537543,0.3329837,600.63,599.52,0.30621204]
[1742138537742,0.3329837,600.63,599.53,0.30621204]
[1742138538244,0.3329837,600.63,599.54,0.30621204]
[1742138538542,0.3329837,600.63,599.55,0.30621204]
[1742138538745,0.3329837,600.63,599.51,0.30621204]
[1742138538940,0.3329837,600.63,599.5,0.33361134]
[1742138538941,0.3329837,600.63,599.52,0.30621204]
[1742138539141,0.3329837,600.63,599.53,0.30621204]
[1742138539341,0.3329837,600.63,599.54,0.30621204]
[1742138539543,0.3329837,600.63,599.51,0.30621204]
[1742138539743,0.3329837,600.63,599.52,0.30621204]
[1742138539943,0.3329837,600.63,599.5,0.33361134]
[1742138539944,0.3329837,600.63,599.51,0.30621204]
[1742138540243,0.3329837,600.63,599.52,0.30621204]
[1742138540443,0.3329837,600.63,599.53,0.30621204]
[1742138540639,0.3329837,600.63,599.54,0.30621204]
[1742138540846,0.3329837,600.63,599.51,0.30621204]
[1742138541042,0.3329837,600.63,599.52,0.30621204]
[1742138541243,0.3329837,600.63,599.51,0.30621204]
[1742138542540,0.3329837,600.63,599.52,0.30615068]
[1742138542741,0.3329837,600.63,599.51,0.30615068]
[1742138542942,0.3329837,600.63,599.52,0.30615068]
[1742138543146,0.3329837,600.63,599.53,0.30615068]
[1742138543343,0.3329837,600.63,599.51,0.30615068]
[1742138543644,0.3329837,600.63,599.5,0.33361134]
[1742138543945,0.3329837,600.63,599.51,0.30614599]
[1742138545541,0.3329837,600.63,599.5,0.33361134]
[1742138549245,0.3329837,600.63,599.51,0.30612043]
[1742138550747,0.3329837,600.63,599.52,0.33360021]
[1742138550947,0.3329837,600.63,599.53,0.30612043]
[1742138551149,0.3329837,600.63,599.54,0.33358908]
[1742138551351,0.3329837,600.63,599.55,0.30612043]
[1742138551649,0.3329837,600.63,599.56,0.33357795]
[1742138551846,0.3329837,600.63,599.57,0.30612043]
[1742138552345,0.3329837,600.63,599.58,0.33356683]
[1742138552550,0.3329837,600.63,599.59,0.30612043]
[1742138552951,0.3329837,600.63,599.6,0.3335557]
[1742138553145,0.3329837,600.63,599.61,0.30612043]
[1742138553348,0.3329837,600.63,599.62,0.33354457]
[1742138553550,0.3329837,600.63,599.63,0.30612043]
[1742138555050,0.3329837,600.63,599.63,0.63965944]
[1742138555254,0.3329837,600.63,599.64,0.30612043]
[1742138555647,0.602,600.62,599.64,0.30612043]
[1742138556251,0.602,600.62,599.63,0.33353901]
[1742138556453,0.602,600.62,599.64,0.30605854]
[1742138559059,0.602,600.62,599.65,0.541]
[1742138559258,0.602,600.62,599.66,0.30605854]
[1742138560256,0.602,600.62,599.65,0.541]
[1742138560456,0.602,600.62,599.66,0.30606056]
[1742138560853,0.602,600.62,599.67,0.30606275]
[1742138561054,0.602,600.62,599.66,0.30606275]
[1742138561255,0.602,600.62,599.67,0.30606275]
[1742138561556,0.602,600.62,599.68,0.30606275]
[1742138561756,0.602,600.62,599.69,0.30606275]
[1742138561951,0.602,600.62,599.66,0.30606275]
[1742138562155,0.602,600.62,599.67,0.30606275]
[1742138562355,0.602,600.62,599.66,0.30606275]
[1742138562655,0.602,600.62,599.67,0.30606275]
[1742138562854,0.602,600.62,599.66,0.30606275]
[1742138563055,0.602,600.62,599.67,0.30606275]
[1742138563255,0.602,600.62,599.68,0.30606275]
[1742138563455,0.602,600.62,599.66,0.30606275]
[1742138563652,0.602,600.62,599.67,0.30606275]
[1742138563854,0.602,600.62,599.66,0.30606275]
[1742138564060,0.602,600.62,599.67,0.30606275]
[1742138564259,0.602,600.62,599.68,0.30606275]
[1742138564452,0.602,600.62,599.66,0.30606275]
[1742138564653,0.602,600.62,599.67,0.30606275]
[1742138564854,0.602,600.62,599.68,0.30606275]
[1742138565053,0.602,600.62,599.69,0.30606275]
[1742138565359,0.602,600.62,599.7,0.30606275]
[1742138565553,0.602,600.62,599.71,0.30601065]
[1742138565756,0.602,600.62,599.65,0.541]
[1742138565757,0.602,600.62,599.66,0.30601065]
[1742138565952,0.602,600.62,599.67,0.30601065]
[1742138566156,0.602,600.62,599.68,0.3335112]
[1742138566357,0.602,600.62,599.69,0.30601065]
[1742138566554,0.602,600.62,599.7,0.33350008]
[1742138566757,0.602,600.62,599.71,0.30601065]
[1742138567056,0.602,600.62,599.71,0.63950517]
[1742138567361,0.602,600.62,599.72,0.30601065]
[1742138571064,0.602,600.62,599.71,0.33349452]
[1742138571260,0.602,600.62,599.72,0.30601458]
[1742138573364,0.602,600.62,599.73,0.3334834]
[1742138573562,0.602,600.62,599.74,0.30601458]
[1742138573763,0.602,600.62,599.75,0.33347228]
[1742138574064,0.602,600.62,599.76,0.30601458]
[1742138574364,0.602,600.62,599.77,0.63947574]
[1742138574563,0.602,600.62,599.78,0.63939912]
[1742138574758,0.602,600.62,599.79,0.63939356]
[1742138574959,0.602,600.62,599.8,0.639388]
[1742138575162,0.602,600.62,599.81,0.63938244]
[1742138575358,0.602,600.62,599.82,0.63937694]
[1742138575563,0.602,600.62,599.83,0.30594358]
[1742138576165,0.602,600.62,599.82,0.33343336]
[1742138576766,2.43968131,601.69,599.82,0.33343336]
[1742138576965,0.33240813,601.67,599.82,0.33343336]
[1742138579865,0.601,601.66,599.82,0.33343336]
[1742138580064,0.3324247,601.64,599.82,0.33343336]
[1742138582762,0.28982973,601.63,599.82,0.33343336]
[1742138582959,0.33244128,601.61,599.82,0.33343336]
[1742138586170,0.33244128,601.61,599.83,0.30603968]
[1742138592477,0.33244128,601.61,599.84,0.30599648]
[1742138592675,0.33244128,601.61,599.83,0.30599648]
[1742138592877,0.33244128,601.61,599.85,0.30599648]
[1742138593174,0.33244128,601.61,599.86,0.30599648]
[1742138593373,0.33244128,601.61,599.87,0.30599648]
[1742138593577,0.33244128,601.61,599.83,0.30599648]
[1742138593877,0.33244128,601.61,599.84,0.30599648]
[1742138594078,0.33244128,601.61,599.82,0.33343336]
[1742138594079,0.33244128,601.61,599.83,0.30599648]
[1742138594271,0.33244128,601.61,599.84,0.30599648]
[1742138594778,0.33244128,601.61,599.82,0.33343336]
[1742138594779,0.33244128,601.61,599.85,0.30599648]
[1742138594979,0.33244128,601.61,599.83,0.30599648]
[1742138595178,0.33244128,601.61,599.84,0.30599648]
[1742138595372,0.33244128,601.61,599.83,0.30599648]
[1742138595573,2.77078033,601.61,599.83,0.30599648]
[1742138595779,3.52145448,601.6,599.83,0.30599648]
[1742138596081,0.33245786,601.58,599.83,0.30599648]
[1742138601790,0.33245786,601.58,599.82,0.33343336]
[1742138602091,0.33245786,601.58,599.83,0.30600283]
[1742138602689,0.33245786,601.58,599.84,0.30601888]
[1742138602889,0.33245786,601.58,599.83,0.30601888]
[1742138607391,0.33245786,601.58,599.84,0.30601207]
[1742138607591,0.33245786,601.58,599.83,0.30601207]
[1742138608986,2.53613364,601.38,599.83,0.30601207]
[1742138609186,3.53046672,601.37,599.84,0.30601893]
[1742138609390,5.97397002,601.37,599.83,0.30601893]
[1742138609587,0.33258501,601.35,599.83,0.30601893]
[1742138616295,0.33258501,601.35,599.84,0.607]
[1742138616497,0.33258501,601.35,599.85,0.30601893]
[1742138619006,0.33258501,601.35,599.84,0.607]
[1742138619197,0.33258501,601.35,599.85,0.30602977]
[1742138622205,0.33258501,601.35,599.84,0.607]
[1742138622407,0.33258501,601.35,599.85,0.3060163]
[1742138623111,0.33258501,601.35,599.84,0.607]
[1742138623311,0.33258501,601.35,599.85,0.30595309]
[1742138624003,0.33258501,601.35,599.86,0.30594127]
[1742138624208,0.33258501,601.35,599.85,0.30594127]
[1742138624409,0.33258501,601.35,599.84,0.607]
[1742138624609,0.33258501,601.35,599.85,0.30596045]
[1742138625911,0.33258501,601.35,599.84,0.607]
[1742138629215,0.33258501,601.35,599.85,0.30594696]
[1742138636719,0.33258501,601.35,599.84,0.607]
[1742138637020,0.33258501,601.35,599.85,0.30595659]
[1742138638219,0.601,601.34,599.85,0.30595659]
[1742138638520,0.3326016,601.32,599.85,0.30595659]
[1742138645420,0.3326016,601.32,599.84,0.607]
[1742138645620,0.3326016,601.32,599.85,0.30602616]
[1742138647422,0.3326016,601.32,599.84,0.607]
[1742138647728,0.3326016,601.32,599.85,0.30605423]
[1742138651125,0.3326016,601.32,599.84,0.607]
[1742138651424,0.3326016,601.32,599.85,0.30601867]
[1742138654726,0.3326016,601.32,599.84,0.607]
[1742138655022,0.3326016,601.32,599.85,0.30601884]
[1742138655227,0.3326016,601.32,599.84,0.607]
[1742138668143,0.28998429,601.31,599.84,0.607]
[1742138668338,0.3326182,601.29,599.84,0.607]
[1742138669535,0.601,601.28,599.84,0.607]
[1742138669938,0.3326348,601.26,599.84,0.607]
[1742138672943,0.29000604,601.25,599.84,0.607]
[1742138673242,0.33265139,601.23,599.84,0.607]
[1742138675942,0.29001208,601.22,599.84,0.607]
[1742138676245,0.33266799,601.2,599.84,0.607]
[1742138676439,0.33266799,601.2,598.18,1.22829962]
[1742138676641,0.33266799,601.2,598.33,0.3342637]
[1742138676843,0.33266799,601.2,598.34,1.02289251]
[1742138677043,0.33266799,601.2,598.35,1.02289251]
[1742138677238,0.33266799,601.2,598.49,0.33417433]
[1742138677643,0.33266799,601.2,598.5,1.02274189]
[1742138677845,0.33266799,601.2,598.51,1.02274189]
[1742138678042,0.33266799,601.2,598.52,0.30628806]
[1742138678247,2.53613364,601.19,598.53,0.30628806]
[1742138678443,2.53613364,601.19,598.54,0.30628806]
[1742138678746,2.53613364,601.19,598.65,0.33408502]
[1742138678941,0.29017289,601.18,598.66,0.30628806]
[1742138679143,0.33274548,601.06,598.68,0.33406828]
[1742138679346,0.33274548,601.06,598.69,0.30629567]
[1742138679547,0.33274548,601.06,598.71,0.33405154]
[1742138679845,0.33274548,601.06,598.72,0.30629567]
[1742138680150,0.33274548,601.06,598.74,0.3340348]
[1742138680355,0.33274548,601.06,598.75,0.85729567]
[1742138680546,0.33274548,601.06,598.77,0.33401807]
[1742138680748,0.33274548,601.06,598.78,0.30629567]
[1742138680949,0.33274548,601.06,598.8,0.33400133]
[1742138681149,0.33274548,601.06,598.81,0.30629567]
[1742138681348,0.33274548,601.06,598.83,0.3339846]
[1742138681548,0.33274548,601.06,598.84,0.30629567]
[1742138681843,0.33274548,601.06,598.86,0.33396787]
[1742138682050,0.33274548,601.06,598.87,0.30629567]
[1742138682249,0.33274548,601.06,598.89,0.33395114]
[1742138682653,0.33274548,601.06,598.9,0.30629567]
[1742138682851,0.33274548,601.06,598.92,0.33393441]
[1742138683050,0.33274548,601.06,598.93,0.30629567]
[1742138683251,0.33274548,601.06,598.95,0.33391768]
[1742138683759,0.33274548,601.06,598.96,0.30629567]
[1742138683949,0.33274548,601.06,598.98,0.33390096]
[1742138684149,0.33274548,601.06,598.99,0.30629567]
[1742138684448,0.33274548,601.06,599.01,0.33388424]
[1742138684649,0.33274548,601.06,599.02,0.30629567]
[1742138684850,0.33274548,601.06,599.04,0.33386752]
[1742138685051,0.33274548,601.06,599.05,0.30629567]
[1742138685250,0.33274548,601.06,599.07,0.3338508]
[1742138685453,0.33274548,601.06,599.08,0.30622671]
[1742138685750,0.33274548,601.06,599.1,0.33383408]
[1742138685951,0.33274548,601.06,599.11,0.30622671]
[1742138686152,0.33274548,601.06,599.12,0.64004965]
[1742138686353,0.33274548,601.06,599.13,0.64004407]
[1742138686552,0.33274548,601.06,599.14,0.6400385]
[1742138686752,0.33274548,601.06,599.15,0.64003293]
[1742138686949,0.33274548,601.06,599.16,0.64002736]
[1742138687252,0.33274548,601.06,599.17,0.64002179]
[1742138687453,0.33274548,601.06,599.18,0.64001622]
[1742138687654,0.33274548,601.06,599.19,0.64001065]
[1742138687854,0.33274548,601.06,599.2,0.64000508]
[1742138688055,0.33274548,601.06,599.21,0.30622671]
[1742138688252,0.33274548,601.06,599.22,0.30622671]
[1742138688448,0.33274548,601.06,599.23,0.63998837]
[1742138688752,0.33274548,601.06,599.24,0.6399828]
[1742138688952,0.33274548,601.06,599.25,0.63997723]
[1742138689148,0.33274548,601.06,599.26,0.63997166]
[1742138689349,0.33274548,601.06,598.75,0.551]
[1742138689350,0.33274548,601.06,599.27,0.63996609]
[1742138689548,0.33274548,601.06,599.28,0.63996052]
[1742138689748,0.33274548,601.06,599.29,0.30622671]
[1742138689952,0.33274548,601.06,599.3,0.30622671]
[1742138690254,0.33274548,601.06,599.31,0.30622671]
[1742138690452,0.33274548,601.06,599.32,0.30622671]
[1742138690855,0.33274548,601.06,599.33,0.30622671]
[1742138691162,0.33274548,601.06,599.34,0.30622671]
[1742138691452,0.33274548,601.06,599.28,0.33373381]
[1742138691453,2.53613364,601.02,599.35,0.30622671]
[1742138691651,0.3327787,601.0,599.36,0.30622671]
[1742138691850,0.3327787,601.0,599.37,0.30622671]
[1742138692053,0.3327787,601.0,599.38,0.30622671]
[1742138692258,0.3327787,601.0,599.39,0.30622671]
[1742138692558,0.3327787,601.0,599.4,0.30622671]
[1742138692760,0.3327787,601.0,599.41,0.30622671]
[1742138693060,0.3327787,601.0,599.42,0.30622671]
[1742138693360,0.3327787,601.0,599.28,0.33373381]
[1742138693361,0.3327787,601.0,599.43,0.30622671]
[1742138693558,0.3327787,601.0,599.29,0.30622671]
[1742138693754,2.53613364,600.94,599.3,0.30622671]
[1742138693954,0.332823,600.92,599.31,0.30622671]
[1742138694165,0.332823,600.92,599.32,0.30622671]
[1742138694358,0.332823,600.92,599.33,0.30622671]
[1742138694655,0.332823,600.92,599.34,0.30624605]
[1742138694858,0.332823,600.92,599.35,0.30624605]
[1742138695059,0.332823,600.92,599.28,0.33373381]
[1742138695060,0.332823,600.92,599.36,0.30624605]
[1742138695258,0.332823,600.92,599.37,0.30624605]
[1742138695460,0.332823,600.92,599.38,0.30624605]
[1742138695655,0.332823,600.92,599.28,0.33373381]
[1742138695656,0.332823,600.92,599.39,0.30624605]
[1742138695860,0.332823,600.92,599.4,0.30624605]
[1742138696161,0.332823,600.92,599.41,0.30624605]
[1742138696162,2.53613364,600.81,599.41,0.30624605]
[1742138696358,0.33289502,600.79,599.42,0.30624605]
[1742138696558,0.33289502,600.79,599.43,0.30624605]
[1742138696763,0.33289502,600.79,599.28,0.33373381]
[1742138696764,0.33289502,600.79,599.44,0.30624605]
[1742138697061,0.33289502,600.79,599.45,0.30624605]
[1742138697260,0.33289502,600.79,599.46,0.30624605]
[1742138697461,0.33289502,600.79,599.47,0.30624605]
[1742138697656,0.33289502,600.79,599.48,0.30624605]
[1742138697860,0.33289502,600.79,599.29,0.30624605]
[1742138698062,0.33289502,600.79,599.3,0.30624605]
[1742138698364,0.33289502,600.79,599.31,0.30624605]
[1742138698562,0.33289502,600.79,599.32,0.30624605]
[1742138698861,0.33289502,600.79,599.33,0.30624605]
[1742138699062,0.33289502,600.79,599.34,0.30624605]
[1742138699263,0.33289502,600.79,599.35,0.30624605]
[1742138699559,0.33289502,600.79,599.36,0.30624605]
[1742138699763,0.33289502,600.79,599.37,0.30624605]
[1742138699956,0.33289502,600.79,599.29,0.30624605]
[1742138700166,0.33289502,600.79,599.3,0.30624605]
[1742138700364,0.33289502,600.79,599.29,0.30624605]
[1742138700666,0.33289502,600.79,599.3,0.30624605]
[1742138700861,0.33289502,600.79,599.29,0.30624605]
[1742138701166,0.33289502,600.79,599.28,0.33373381]
[1742138701365,0.33289502,600.79,599.29,0.30628058]
[1742138703068,0.33289502,600.79,599.28,0.33373381]
[1742138703270,0.33289502,600.79,599.29,0.30631958]
[1742138703865,0.33289502,600.79,599.28,0.92073381]
[1742138705070,0.33289502,600.79,599.29,0.30633871]
[1742138706770,0.33289502,600.79,599.28,0.92073381]
[1742138706971,0.33289502,600.79,599.29,0.30633597]
[1742138708470,0.33289502,600.79,599.28,0.92073381]
[1742138708671,0.33289502,600.79,599.29,0.30634399]
[1742138713575,0.33289502,600.79,599.28,0.92073381]
[1742138714076,0.512,600.78,599.28,0.92073381]
[1742138714276,0.33291164,600.76,599.28,0.92073381]
[1742138717981,0.33291164,600.76,599.29,0.3063901]
[1742138718580,0.33291164,600.76,599.3,0.30639385]
[1742138718877,0.33291164,600.76,599.31,0.30639385]
[1742138719084,0.33291164,600.76,599.29,0.30639385]
[1742138719282,0.33291164,600.76,599.3,0.30639385]
[1742138719483,0.33291164,600.76,599.29,0.30639385]
[1742138719883,0.33291164,600.76,599.3,0.30637628]
[1742138720082,0.33291164,600.76,599.29,0.30637628]
[1742138720283,2.53613364,600.63,599.29,0.30637628]
[1742138720483,3.53173585,600.62,599.29,0.30637628]
[1742138720677,0.33300033,600.6,599.29,0.30637628]
[1742138721780,0.33300033,600.6,599.3,0.30635405]
[1742138722083,0.33300033,600.6,599.31,0.30635405]
[1742138722283,0.33300033,600.6,599.29,0.30635405]
[1742138722485,0.33300033,600.6,599.3,0.30635405]
[1742138722684,0.33300033,600.6,599.29,0.30635405]
[1742138722884,0.33300033,600.6,599.28,0.587]
[1742138722885,0.33300033,600.6,599.3,0.30635405]
[1742138723080,0.33300033,600.6,599.31,0.30635405]
[1742138723282,0.33300033,600.6,599.32,0.30635405]
[1742138723481,0.33300033,600.6,599.29,0.30635405]
[1742138723784,0.33300033,600.6,599.3,0.30635405]
[1742138723984,0.33300033,600.6,599.31,0.30635405]
[1742138724185,0.33300033,600.6,599.29,0.30635405]
[1742138724385,0.33300033,600.6,599.3,0.30635405]
[1742138724587,0.33300033,600.6,599.29,0.30635405]
[1742138724785,0.33300033,600.6,599.3,0.30635405]
[1742138724980,0.33300033,600.6,599.31,0.30635405]
[1742138725185,0.33300033,600.6,599.29,0.30635405]
[1742138725485,0.33300033,600.6,599.3,0.30635405]
[1742138725684,0.33300033,600.6,599.29,0.30635405]
[1742138725885,0.33300033,600.6,599.3,0.30635405]
[1742138726081,0.33300033,600.6,599.29,0.30635405]
[1742138726280,0.33300033,600.6,599.3,0.30635405]
[1742138726482,0.33300033,600.6,599.31,0.30635405]
[1742138726681,0.33300033,600.6,599.32,0.30635405]
[1742138726887,0.33300033,600.6,599.29,0.30635405]
[1742138727081,0.33300033,600.6,599.33,0.30635405]
[1742138727286,0.33300033,600.6,599.34,0.30635405]
[1742138727481,0.33300033,600.6,599.29,0.30635405]
[1742138732891,0.33300033,600.6,599.28,0.587]
[1742138733096,0.33300033,600.6,599.29,0.30636618]
[1742138737401,0.33300033,600.6,599.29,0.67036618]
[1742138737599,0.33300033,600.6,599.3,0.30636618]
[1742138739705,0.467,600.59,599.3,0.30636618]
[1742138739895,0.33301696,600.57,599.3,0.30636618]
[1742138743303,0.33301696,600.57,599.29,0.364]
[1742138746397,0.33301696,600.57,599.3,0.30625989]
[1742138754911,0.33301696,600.57,599.29,0.364]
[1742138755111,0.33301696,600.57,599.3,0.30621348]
[1742138757419,0.33301696,600.57,599.3,0.95521348]
[1742138757619,0.33301696,600.57,599.31,0.30621348]
[1742138764418,0.33301696,600.57,599.32,0.30631598]
[1742138764623,0.33301696,600.57,599.31,0.30631598]
[1742138764819,0.33301696,600.57,599.32,0.30631598]
[1742138765021,0.33301696,600.57,599.31,0.30631598]
[1742138765224,0.33301696,600.57,599.32,0.30631598]
[1742138765421,0.33301696,600.57,599.31,0.30631598]
[1742138765625,0.33301696,600.57,599.32,0.30631598]
[1742138765825,0.33301696,600.57,599.31,0.30631598]
[1742138766125,0.33301696,600.57,599.32,0.30631598]
[1742138766522,0.33301696,600.57,599.33,0.30631598]
[1742138766725,0.33301696,600.57,599.31,0.30631598]
[1742138767522,0.83501696,600.57,599.31,0.30631598]
[1742138772932,0.83501696,600.57,599.3,0.649]
[1742138773228,0.83501696,600.57,599.31,0.30633108]
[1742138777034,0.83501696,600.57,599.32,0.30634157]
[1742138777227,0.83501696,600.57,599.31,0.30634157]
[1742138781531,0.83501696,600.57,599.3,0.649]
[1742138781734,0.83501696,600.57,599.31,0.30632401]
[1742138783237,0.83501696,600.57,599.3,0.649]
[1742138783540,0.83501696,600.57,599.31,0.30632522]
[1742138785738,0.83501696,600.57,599.3,0.649]
[1742138786639,0.83501696,600.57,599.31,0.30637832]
[1742138791141,0.83501696,600.57,599.31,0.67137832]
[1742138791342,0.83501696,600.57,599.32,0.30637832]
[1742138798640,4.37158437,600.57,599.32,0.30637832]
[1742138799041,0.83501696,600.57,599.33,0.30637724]
[1742138799242,4.37164582,600.57,599.32,0.30637724]
[1742138799445,0.83501696,600.57,599.33,0.30637724]
[1742138799745,0.83501696,600.57,599.34,0.30637724]
[1742138800147,0.83501696,600.57,599.35,0.30637724]
[1742138800347,0.83501696,600.57,599.36,0.30637724]
[1742138800545,0.83501696,600.57,599.32,0.30637724]
[1742138800747,0.83501696,600.57,599.37,0.30637724]
[1742138800941,0.83501696,600.57,599.31,0.365]
[1742138801142,0.83501696,600.57,599.32,0.30638637]
[1742138802250,0.83501696,600.57,599.31,0.365]
[1742138809954,0.83501696,600.57,599.31,0.98]
[1742138832982,2.53613364,600.56,599.31,0.98]
[1742138833185,0.3330336,600.54,599.31,0.98]
[1742138833880,1.78548183,600.54,599.31,0.98]
[1742138835882,0.601,600.53,599.31,0.98]
[1742138836088,0.33305024,600.51,599.31,0.98]
[1742138836584,2.53613364,600.43,599.31,0.98]
[1742138836785,0.33310571,600.41,599.31,0.98]
[1742138862795,0.601,600.4,599.31,0.98]
[1742138862996,0.33312235,600.38,599.31,0.98]
[1742138885514,0.6,600.37,599.31,0.98]
[1742138885713,0.333139,600.35,599.31,0.98]